Cogmind - Beta 16 @@@ ROGUE MODE // 2025.10.26 @ 13:22:12 Player: Ae Result: Destroyed by G-34 Mercenary with Small Laser Performance ------------- Evolutions (0) 0 Regions Visited (1) 200 Robots Destroyed (25) 125 Value Destroyed (360) 360 Prototype IDs (2) 40 Alien Tech Used (0) 0 Bonus (0) 0 TOTAL SCORE: 725 Bonus ------- None Cogmind --------- Core Integrity 0/250 Matter 286/300 Energy 100/100 System Corruption 0% Temperature Cool (6) Movement Core (350) Ox6 Location -10/Materials Parts ------- > --- POWER (1) -------- (None) > --- PROPULSION (2) --- (None) > --- UTILITY (2) ------ Large Storage Unit > --- WEAPON (2) ------- Light Assault Rifle > --- INVENTORY (15) --- Ion Engine Wheel Heat Sink High-capacity Matter Pod (200) Structural Scanner Improved Terrain Scanner Hacking Suite Peak State ------------ > --- POWER ------------ Ion Engine > --- PROPULSION ------- Light Treads Compact Wheel > --- UTILITY ---------- Large Storage Unit Seismic Detector > --- WEAPON ----------- Small Laser Light Assault Rifle > --- INVENTORY -------- Ion Engine Light Treads Wheel Heat Sink Small Storage Unit High-capacity Matter Pod Improved Terrain Scanner Medium Laser [Rating: 8] Favorites ----------- Power Ion Engine Engine Ion Engine Propulsion Compact Wheel Treads Light Treads Wheel Compact Wheel Utility Seismic Detector Device Seismic Detector Storage Large Storage Unit Weapon Light Assault Rifle Energy Gun Small Laser Ballistic Gun Light Assault Rifle Build | -11 -10 ------- Run | Yrd Mat Slots Evolved . | . . Power . | . . Propulsion . | . . Utility . | . . Weapon . | . . Parts Attached 13 | 7 6 Power 1 | 1 . Engine 1 | 1 . Core . | . . Reactor . | . . Propulsion 4 | 2 2 Treads 2 | . 2 Leg . | . . Wheel 2 | 2 . Hover . | . . Flight . | . . Utility 4 | 2 2 Device 1 | 1 . Storage 3 | 1 2 Processor . | . . Hackware . | . . Protection . | . . Artifact . | . . Weapon 4 | 2 2 Energy Gun 2 | 1 1 Energy Cannon . | . . Ballistic Gun 2 | 1 1 Ballistic Cannon . | . . Launcher . | . . Special Weapon . | . . Impact Weapon . | . . Slashing Weapon . | . . Piercing Weapon . | . . Special Melee Weapon . | . . Unidentified Prototypes . | . . Parts Lost 8 | . 8 Power 1 | . 1 Propulsion 3 | . 3 Utility 1 | . 1 Weapon 3 | . 3 Highest Loss Streak 8 | . 8 To Critical Strikes . | . . Average Backups 6 | 2 6 Power . | . 1 Propulsion 1 | 1 1 Utility 2 | . 3 Weapon . | . . Tool/Special . | . . Unused Backups 6 | . 6 Power 2 | . 2 Propulsion . | . . Utility 4 | . 4 Weapon . | . . Tool/Special . | . . Average Slot Usage (%) 96 | . 96 Engine 12 | . 12 Treads 12 | . 12 Wheel 14 | . 14 Device 12 | . 12 Storage 15 | . 15 Energy Gun 13 | . 13 Ballistic Gun 13 | . 13 Peak Build Rating 8 | 7 8 Average Rating 6 | 5 7 On Entrance 3 | . 7 Avg Prop Armor Cover (%) 13 | . 13 Naked Turns . | . . Heaviest Build 28 | 13 28 Greatest Support 40 | 26 40 Greatest Overweight (x) 6 | . 6 Average Overweight (x) . | . . Largest Inventory Capacity 15 | 8 15 Average Capacity 11 | 7 11 Most Carried 9 | 5 9 Average Carried 6 | 2 6 Final Capacity 15 | 8 15 Final Carried 7 | 5 7 Class Distribution -------------------- 100% | Mutant Dominant Class ---------------- Mutant | -10/Materials Resources | -11 -10 ----------- Run | Yrd Mat Matter Collected 636 | 279 357 Remotely . | . . Salvage Created 636 | 179 457 Parts 57 | 15 42 Haulers Intercepted . | . . Recyclers Shooed . | . . Parts Field Recycled . | . . Retrieved Matter . | . . Parts Self-Destructed . | . . Prevented . | . . Parts Restored . | . . Kills | -11 -10 ------- Run | Yrd Mat Combat Hostiles Destroyed 15 | . 15 Guns 15 | . 15 Classes Destroyed 7 | 2 5 Worker 1 | . 1 Builder 3 | . 3 Tunneler 4 | 4 . Recycler 1 | 1 . Operator 1 | . 1 Swarmer 9 | . 9 Grunt 6 | . 6 Best Kill Streak 5 | 5 5 Combat Bots Only 3 | . 3 Max Kills in Single Turn 2 | 1 2 Gunslinging 1 | . 1 Exploded . | . . Melee . | . . Uniques/NPCs Destroyed . | . . Combat | -11 -10 -------- Run | Yrd Mat Hostile Shots Fired 149 | . 149 Missed 45 | . 45 Hits 104 | . 104 Projectile 104 | . 104 Damage Taken 974 | . 974 Core 256 | . 256 Absorbed by Shields . | . . Core Remaining (%) 100 | 100 . Volleys Fired 76 | 10 66 Largest 2 | 2 2 Hottest 70 | 60 70 Shots Fired 144 | 20 124 Gun 144 | 20 124 Cannon . | . . Launcher . | . . Special . | . . Kinetic 75 | 10 65 Thermal 69 | 10 59 Explosive . | . . Electromagnetic . | . . Robot Hit Streak 11 | 5 11 Robot Miss Streak 5 | 2 5 Penetration Max . | . . Secondary Targets 5 | . 5 Max Gunslinging Chain 1 | . 1 Shots Hit Robots 83 | 13 70 Core Hits 44 | 9 35 Critical Kills . | . . Critical Parts Destroyed . | . . Critical Strikes 2 | . 2 Burn 2 | . 2 Melee Attacks . | . . Impact . | . . Slashing . | . . Piercing . | . . Sneak Attacks . | . . Combat Hostiles . | . . Follow-up Attacks . | . . Damage Inflicted 816 | 115 701 Guns 813 | 115 698 Cannons . | . . Explosions . | . . Melee . | . . Ramming 3 | . 3 Kinetic 394 | 59 335 Thermal 419 | 56 363 Explosive . | . . Electromagnetic . | . . Impact . | . . Slashing . | . . Piercing . | . . Highest Corruption . | . . Average Corruption . | . . Corruption Purged . | . . Corruption Blocked . | . . Overload Shots . | . . Overflow Damage . | . . Projectiles . | . . Explosions . | . . Melee . | . . Knockbacks . | . . Impact . | . . Kinetic . | . . Secondary . | . . Self-Inflicted Damage . | . . Shots . | . . Rammed 2 | . 2 Targets Rammed 2 | . 2 Kicked . | . . Crushed . | . . Highest Temperature 100 | 40 100 Average Temperature 33 | 22 34 Received Heat Transfer 276 | . 276 Siege Activations . | . . Martial Activations . | . . Shielding Activations . | . . Robots Disrupted . | . . Combat Hostiles . | . . Robots Corrupted . | . . Combat Hostiles . | . . Parts Fried . | . . Impact Corruptions . | . . Robots Melted . | . . Combat Hostiles . | . . Parts Melted 2 | . 2 Heat Transferred 1158 | 125 1033 Parts Sabotaged . | . . Parts Stolen . | . . Parts Stripped . | . . Power Chain Reactions . | . . Alert | -11 -10 ------- Run | Yrd Mat Maximum Alert Level . | . . Low Security (%) 100 | 100 100 Level 1 . | . . Level 2 . | . . Level 3 . | . . Level 4 . | . . Level 5 . | . . High Security . | . . Max Security . | . . Peak Influence 156 | 15 156 Initial 3 | . 3 Average 37 | 2 41 Influence Increases 481 | 25 456 Destroy 0b10 Robot/C 300 | . 300 Destroy 0b10 Robot/NC 50 | 25 25 Destroy Leader 60 | . 60 Successful Hack 26 | . 26 Select Force Hacks 30 | . 30 Lose Combat Pursuer 15 | . 15 Influence Decreases 373 | 20 353 Entered New Map 2 | . 2 Time Decay 291 | 20 271 Lost Part 80 | . 80 Squads Dispatched 5 | . 5 Investigation 4 | . 4 Extermination . | . . Reinforcement 1 | . 1 Assault . | . . Garrison . | . . Intercept . | . . Searches Triggered . | . . Construction Impeded . | . . Haulers Reinforced . | . . Active Scanning Responses . | . . Cargo Convoy Interrupts . | . . Stealth | -11 -10 --------- Run | Yrd Mat Distress Signals 1 | . 1 Communications Jammed . | . . Distress Signals . | . . Times Spotted 25 | . 25 Peak Tracking Total 5 | . 5 Tactical Retreats 1 | . 1 Traps | -11 -10 ------- Run | Yrd Mat Traps Triggered 3 | . 3 Indirectly . | . . Trap Hack Attempts . | . . Triggered . | . . Disarmed . | . . Reprogrammed . | . . Reused . | . . Traps Extracted . | . . Installed . | . . Triggered . | . . Machines | -11 -10 ---------- Run | Yrd Mat Machines Disabled . | . . Max in Single Turn . | . . Machines Repaired . | . . Machines Dismantled . | . . Machines Sabotaged . | . . Overloaded Fab Kills . | . . Hacking | -11 -10 --------- Run | Yrd Mat Machines Accessed 6 | . 6 Terminals 5 | . 5 Fabricators . | . . Repair Stations . | . . Recycling Units 1 | . 1 Scanalyzers . | . . Garrison Access . | . . Total Hacks 21 | . 21 Successful 13 | . 13 Failed 8 | . 8 Catastrophic . | . . Database Lockouts . | . . Manual 19 | . 19 Terminals 19 | . 19 Fabricators . | . . Repair Stations . | . . Recycling Units 2 | . 2 Scanalyzers . | . . Garrison Access . | . . Terminal Hacks 2 | . 2 Prototype ID Bank 1 | . 1 Recall Investigation 1 | . 1 Fabricator Hacks . | . . Repair Station Hacks . | . . Recycling Unit Hacks 1 | . 1 Report Inventory 1 | . 1 Scanalyzer . | . . Garrison Access Hacks . | . . Unauthorized Hacks 10 | . 10 Terminals 9 | . 9 Botnet 4 | . 4 Skim 5 | . 5 Fabricators . | . . Repair Stations . | . . Recycling Units 1 | . 1 Tunnel 1 | . 1 Scanalyzers . | . . Garrison Access . | . . Data Cores Recovered . | . . Used . | . . Hacking Detections 6 | . 6 Full Trace Events . | . . Feedback Events . | . . Feedback Blocked . | . . Robot Schematics Acquired . | . . Robots Built . | . . Authchips . | . . Time . | . . Total Robot Build Rating . | . . Part Schematics Acquired . | . . Parts Built . | . . Authchips . | . . Time . | . . Total Part Build Rating . | . . Part Studies Acquired . | . . Parts Repaired . | . . Time . | . . Parts Recycled . | . . Recycled Matter . | . . Retrieved Matter . | . . Retrieved Components . | . . Parts Scanalyzed . | . . Part Schematics Acquired . | . . Parts Damaged . | . . Bothacking | -11 -10 ------------ Run | Yrd Mat Used RIF Installer . | . . Robots Hacked . | . . Non-combat . | . . Combat . | . . Robot Hacks Applied . | . . Relay Couplers Released . | . . Fabnet Peak Effective % . | . . Robots Rewired . | . . Allies Hacked . | . . Hacks Repelled . | . . Allies | -11 -10 -------- Run | Yrd Mat Total Allies . | . . Largest Group . | . . Highest-Rated Group . | . . Highest-Rated Ally . | . . Total Orders . | . . Ally Attacks . | . . Total Damage . | . . Kills . | . . Allies Corrupted . | . . Allies Melted . | . . Intel | -11 -10 ------- Run | Yrd Mat Active Infowar (turns) 731 | 5 726 Seismic 731 | 5 726 Robot Analysis Total . | . . Derelict Logs Recovered . | . . Drone Launches . | . . Drone Recoveries . | . . Exploration | -11 -10 ------------- Run | Yrd Mat Turns Passed 929 | 89 840 Spaces Moved 626 | 51 575 Core 4 | 1 3 Treads 26 | . 26 Legs . | . . Wheels 596 | 50 546 Hover . | . . Flight . | . . Fastest Speed 50 | 50 90 Average Speed 108 | 90 109 Slowest Speed 350 | 100 350 Overloaded Moves . | . . Propulsion Burnouts . | . . Robots Hopped . | . . Potential Cave-ins . | . . Cave-ins Triggered . | . . Exploration Rate (%) 36 | 5 68 Regions Visited 1 Branch Regions . Pre-discovered Areas 2 | . 2 Known Exits Taken . | . . Unknown Exits Taken 1 | 1 . Scrap Searched . | . . Spaces Dug . | . . Terrain Destroyed . | . . Melee . | . . Projectile . | . . AOE . | . . Terrain Rammed . | . . Walls Destroyed . | . . Machines Disabled . | . . Actions | -11 -10 --------- Run | Yrd Mat Total 741 | 72 669 Wait 7 | . 7 Move 625 | 50 575 Hop . | . . Pick Up 10 | 5 5 Fast Attach 11 | 7 4 Attach 2 | . 2 Detach . | . . Swap 6 | . 6 Drop 2 | . 2 Fire 76 | 10 66 Melee . | . . Ram . | . . Kick . | . . Crush 2 | . 2 Escape Stasis . | . . Rewire . | . . Trap . | . . Miscellaneous . | . . Route ------- -11/Scrapyard -10/Materials (discovered 5 exits: *Mat x3 / Min / Sub) History --------- Turn | Location | Event 16 | -11/Scrapyard | Discovered new exit (range 16) 90 | -11/Scrapyard | Entered Materials 317 | -10/Materials | Build established: Mutant 484 | -10/Materials | Discovered new exit (range 10) 500 | -10/Materials | Learned Storage emergency access door positions 547 | -10/Materials | Learned Storage trap positions 582 | -10/Materials | Identified exit to Subcaves 627 | -10/Materials | Identified exit to Mines 627 | -10/Materials | Identified exit to Materials 637 | -10/Materials | Loaded intel: 8 terminal locations 638 | -10/Materials | Learned location of Subcaves (-10) 647 | -10/Materials | Learned Storage emergency access door positions 790 | -10/Materials | Derelicts attacked the area 808 | -10/Materials | Discovered exit to Materials (range 15) 915 | -10/Materials | Core integrity fell below 50% 925 | -10/Materials | Core integrity fell below 20% 930 | -10/Materials | Destroyed by G-34 Mercenary with Small Laser Last Messages --------------- 00866_ S-10 Pest destroyed. 00866_ Switching to secondary target: S-10 Pest. 00869_ S-10 Pest suffers critical hit (Burn). 00869_ Lgt. Ion Engine melted. 00869_ S-10 Pest destroyed. 00869_ Switching to secondary target: S-10 Pest. 00869_ S-10 Pest destroyed. 00872_ Acquired 23 matter. 00888_ Lgt. Assault Rifle destroyed. 00896_ Seismic Detector destroyed. 00903_ Med. Laser destroyed. 00905_ Slammed into S-10 Pest. 00907_ Slammed into G-34 Mercenary. 00910_ Com. Wheel destroyed. 00912_ Lgt. Treads destroyed. 00914_ K-01 Serf collects debris. 00922_ K-01 Serf cleans the Terminal. 00922_ Acquired Lgt. Assault Rifle. 00924_ S-10 Pest destroyed. 00926_ K-01 Serf collects debris. Map ----- +----------------------------------------------------+ | ???????????????????????????????????? | | ???????????????????????????????????? | | ???????????????????????????????????? | | ######??????????????#??????????????? | | "" #???????????? #??????????????? | | "" #######????? ##?# ????????? | | "" # ##### #?# ????????? | | # #?# #???????? | | / T " #?# #???????? | | ###### #?# #???????? | | # ##### #?# #???????? | | ###+#######?#####?# r #???????? | | # #???????# #???????? | | ## # #???????# #???????? | | ?# # """"""" #???????+ #???????? | | ?# # """"""" #???????# ######### | | ?# # """"""" #??????## ## # | | ?# # """"""" #??????# # # | | ?# # """"""" #??????# # # | | ?#= # ??????????# g%/ """" # | | ?#%% #####????????????# %# """" # | | ?#[ #????????????????# g # """" ? | | ?# ####################%#########? | | ?# =%!| #?# #????????? | | ?# == *|*=! #?# #????????? | | ?# %[% ==%%=| #?#@#????????? | | ?# ############## #?#=#????????? | | ?# +????????????# ###k###??????? | | ?# #????????????# #=%k[=#??????? | | ?# #????????????# # [a[=#??????? | | ? #????????????# # [T% #??????? | | +????????????# # #??????? | | #????????????# # #??????? | | ######????????????# ##??????? | | ??????????????????# #???????? | | ??????????????????# #???????? | | ??????????????????# #???????? | | ??????????????????# #???????? | | ??????????????????# #???????? | | ??????????????????+ /???????? | | ??????????????????# #???????? | | ??????????????????###+## #???????? | | ???????????????????????# #???????? | | ?????????????????????T?? #???????? | | ?????=?????????????????? #???????? | | ???????????????????????? #???????? | | ???????????????????????? < #???????? | | ???????????????????????? ????????? | | ???????????????????????????????????? | | ???????????????????????????????????? | +----------------------------------------------------+ Best States ------------- Heat Dissipation 25 Energy Generation 10 Energy Capacity 250 Matter Stores 300 Matter Capacity 500 Sight Range 16 Terrain Scan Density 10 Evasion (%) 42 Recoil Reduction 2 Item Schematics ----------------- None Robot Schematics ------------------ None Fabricated ------------ Nothing Repaired ---------- Nothing Studied --------- None Alien Tech Used ----------------- None Achievements -------------- None Challenges ------------ None Game ------ Seed PointLauncherMaul Manual? 0 Play Time 00:08:40 Cumulative 104.8 hours Start 2025.10.26 @ 13:13:43 End 2025.10.26 @ 13:22:12 Sessions 3 Manual Loads 0 Difficulty Rogue Special Mode None Game No. 173 Rogue 145 Adventurer 28 Explorer 0 Win Type - Total 0 Types 0/0/0/0/0/0/0/0/0/0 Lore% 41 Gallery% 32 Achievement% 23 Wizard Run 0 Options --------- Layout 0 ASCII 0 Keyboard 1 Movement Numpad Keybinds 0 Fullscreen 2 Font 28/SmallcapsGlow Map View 84x54 Zoom Use 0% Tactical HUD 1 Map Filters NONE Filters NONE Steam 1 RUN: bd4a4f06-7711-47b6-897e-51f557d9e9ca